fUST/lending_fUST_20240517
["ID","MTS","AMOUNT","RATE_DAILY","PERIOD"]
[327179185,1715880644440,-326.48227653,0.00016438,2]
[327179187,1715880644449,-151.0,0.00016438,2]
[327179189,1715880644458,-500.0,0.00016438,2]
[327179191,1715880644467,-151.0,0.00016438,2]
[327179193,1715880644476,-246.775334,0.00016438,2]
[327179195,1715880644485,-500.0,0.00016438,2]
[327179197,1715880644494,-185.964403,0.00016438,2]
[327179199,1715880644503,-185.964403,0.00016438,2]
[327179201,1715880644512,-185.964403,0.00016438,2]
[327179203,1715880644525,-500.0,0.00016438,2]
[327179205,1715880644536,-185.964403,0.00016438,2]
[327179207,1715880644548,-500.0,0.00016438,2]
[327179209,1715880644557,-185.964403,0.00016438,2]
[327179210,1715880644566,-185.964403,0.00016438,2]
[327179212,1715880644575,-185.964403,0.00016438,2]
[327179214,1715880644586,-185.964403,0.00016438,2]
[327179216,1715880644595,-185.964403,0.00016438,2]
[327179218,1715880644604,-500.0,0.00016438,2]
[327179220,1715880644617,-185.964403,0.00016438,2]
[327179222,1715880644626,-500.0,0.00016438,2]
[327179224,1715880644635,-185.964403,0.00016438,2]
[327179226,1715880644644,-185.964403,0.00016438,2]
[327179228,1715880644654,-185.964403,0.00016438,2]
[327179230,1715880644663,-185.964403,0.00016438,2]
[327179232,1715880644672,-185.964403,0.00016438,2]
[327179234,1715880644681,-185.964403,0.00016438,2]
[327179236,1715880644691,-185.964403,0.00016438,2]
[327179238,1715880644700,-185.964403,0.00016438,2]
[327179240,1715880644710,-185.964403,0.00016438,2]
[327179242,1715880644719,-185.96440058,0.00016438,2]
[327179243,1715880644728,-500.0,0.00016438,2]
[327179245,1715880644737,-500.0,0.00016438,2]
[327179247,1715880644746,-502.12,0.00016438,2]
[327179249,1715880644756,-493.84615174,0.00016438,2]
[327179251,1715880644765,-519.75218592,0.00016438,2]
[327179253,1715880644777,-500.0,0.00016438,2]
[327179255,1715880644786,-500.0,0.00016438,2]
[327179257,1715880644795,-500.0,0.00016438,2]
[327179259,1715880644803,-888.93,0.00016438,2]
[327179261,1715880644813,-1610.88,0.00016438,2]
[327179263,1715880644821,-500.0,0.00016438,2]
[327179265,1715880644831,-1788.75,0.00016438,2]
[327179267,1715880644840,-676.54,0.00016438,2]
[327179269,1715880644849,-4010.1,0.00016438,2]
[327179271,1715880644859,-500.0,0.00016438,2]
[327179273,1715880644868,-500.0,0.00016438,2]
[327179275,1715880644878,-191.31266475,0.00016438,2]
[327179276,1715880644887,-500.0,0.00016438,2]
[327179278,1715880644896,-500.0,0.00016438,2]
[327179280,1715880644905,-500.0,0.00016438,2]
[327179282,1715880644914,-500.0,0.00016438,2]
[327179284,1715880644924,-1100.56,0.00016438,2]
[327179286,1715880644932,-1617.28,0.00016438,2]
[327179288,1715880644942,-500.0,0.00016438,2]
[327179290,1715880644951,-394.31553938,0.00016438,2]
[327179292,1715880644961,-500.0,0.00016438,2]
[327179294,1715880644971,-500.0,0.00016438,2]
[327179296,1715880644980,-500.0,0.00016438,2]
[327179298,1715880644989,-500.0,0.00016438,2]
[327179299,1715880644998,-500.0,0.00016438,2]
[327179301,1715880645007,-500.0,0.00016438,2]
[327179303,1715880645016,-1040.17,0.00016438,2]
[327179305,1715880645028,-500.0,0.00016438,2]
[327179307,1715880645037,-541.08,0.00016438,2]
[327179309,1715880645047,-500.0,0.00016438,2]
[327179311,1715880645056,-500.0,0.00016438,2]
[327179313,1715880645065,-500.0,0.00016438,2]
[327179315,1715880645075,-500.0,0.00016438,2]
[327179317,1715880645084,-500.0,0.00016438,2]
[327179319,1715880645094,-500.0,0.00016438,2]
[327179321,1715880645102,-500.53,0.00016438,2]
[327179323,1715880645112,-500.0,0.00016438,2]
[327179324,1715880645121,-2835.11,0.00016438,2]
[327179326,1715880645131,-543.29452259,0.00016438,2]
[327179328,1715880645140,-5143.5,0.00016438,2]
[327179330,1715880645149,-5143.5,0.00016438,2]
[327179332,1715880645159,-5143.5,0.00016438,2]
[327179334,1715880645168,-5143.5,0.00016438,2]
[327179336,1715880645178,-5143.5,0.00016438,2]
[327179338,1715880645187,-5143.5,0.00016438,2]
[327179340,1715880645196,-5143.5,0.00016438,2]
[327179341,1715880645205,-5143.5,0.00016438,2]
[327179343,1715880645214,-500.0,0.00016438,2]
[327179345,1715880645223,-5143.5,0.00016438,2]
[327179347,1715880645233,-5143.5,0.00016438,2]
[327179349,1715880645242,-978.67,0.00016438,2]
[327179351,1715880645251,-5143.5,0.00016438,2]
[327179353,1715880645260,-5143.5,0.00016438,2]
[327179355,1715880645270,-5143.5,0.00016438,2]
[327179357,1715880645279,-500.0,0.00016438,2]
[327179359,1715880645288,-500.0,0.00016438,2]
[327179361,1715880645298,-2899.83,0.00016438,2]
[327179363,1715880645308,-500.0,0.00016438,2]
[327179365,1715880645317,-500.0,0.00016438,2]
[327179366,1715880645327,-432.60518012,0.00016438,2]
[327179368,1715880645337,-500.0,0.00016438,2]
[327179370,1715880645346,-594.52430356,0.00016438,2]
[327179374,1715880645374,-1359.17569644,0.00016438,2]
[327179376,1715880645384,-1455.85,0.00016438,2]
[327179378,1715880645394,-500.0,0.00016438,2]
[327179380,1715880645403,-500.0,0.00016438,2]
[327179382,1715880645412,-500.0,0.00016438,2]
[327179384,1715880645422,-584.04,0.00016438,2]
[327179386,1715880645431,-115.74909844,0.00016438,2]
[327179407,1715880645657,-420.06090156,0.00016438,2]
[327179409,1715880645667,-500.0,0.00016438,2]
[327179411,1715880645677,-500.0,0.00016438,2]
[327179413,1715880645686,-500.0,0.00016438,2]
[327179415,1715880645695,-500.0,0.00016438,2]
[327179417,1715880645706,-5337.61,0.00016438,2]
[327179418,1715880645715,-500.0,0.00016438,2]
[327179420,1715880645724,-881.5,0.00016438,2]
[327179422,1715880645734,-500.0,0.00016438,2]
[327179424,1715880645743,-500.0,0.00016438,2]
[327179426,1715880645752,-500.0,0.00016438,2]
[327179428,1715880645762,-500.0,0.00016438,2]
[327179430,1715880645772,-500.0,0.00016438,2]
[327179432,1715880645782,-500.0,0.00016438,2]
[327179434,1715880645792,-500.0,0.00016438,2]
[327179436,1715880645801,-500.0,0.00016438,2]
[327179438,1715880645810,-746.84,0.00016438,2]
[327179440,1715880645819,-500.0,0.00016438,2]
[327179442,1715880645828,-4193.97,0.00016438,2]
[327179444,1715880645838,-3007.88,0.00016438,2]
[327179445,1715880645847,-500.0,0.00016438,2]
[327179447,1715880645856,-304.73273413,0.00016438,2]
[327179449,1715880645866,-500.0,0.00016438,2]
[327179451,1715880645876,-500.0,0.00016438,2]
[327179453,1715880645885,-500.0,0.00016438,2]
[327179455,1715880645895,-500.0,0.00016438,2]
[327179457,1715880645905,-500.0,0.00016438,2]
[327179459,1715880645914,-379.96,0.00016438,2]
[327179461,1715880645923,-379.96,0.00016438,2]
[327179463,1715880645932,-1040.07,0.00016438,2]
[327179465,1715880645942,-379.96,0.00016438,2]
[327179467,1715880645950,-500.0,0.00016438,2]
[327179469,1715880645960,-379.96,0.00016438,2]
[327179471,1715880645969,-379.96,0.00016438,2]
[327179472,1715880645978,-379.96,0.00016438,2]
[327179474,1715880645987,-379.96,0.00016438,2]
[327179476,1715880645996,-379.96,0.00016438,2]
[327179478,1715880646005,-379.96,0.00016438,2]
[327179480,1715880646014,-379.96,0.00016438,2]
[327179482,1715880646025,-379.96,0.00016438,2]
[327179484,1715880646034,-379.96,0.00016438,2]
[327179486,1715880646043,-379.96,0.00016438,2]
[327179488,1715880646053,-500.0,0.00016438,2]
[327179490,1715880646062,-379.96,0.00016438,2]
[327179492,1715880646071,-379.96,0.00016438,2]
[327179494,1715880646081,-379.96,0.00016438,2]
[327179496,1715880646090,-379.96,0.00016438,2]
[327179498,1715880646099,-500.0,0.00016438,2]
[327179500,1715880646108,-379.96,0.00016438,2]
[327179502,1715880646117,-379.96,0.00016438,2]
[327179504,1715880646126,-874.54,0.00016438,2]
[327179506,1715880646136,-379.96,0.00016438,2]
[327179507,1715880646146,-537.99,0.00016438,2]
[327179509,1715880646156,-500.0,0.00016438,2]
[327179511,1715880646167,-2679.19,0.00016438,2]
[327179513,1715880646176,-500.0,0.00016438,2]
[327179515,1715880646186,-500.0,0.00016438,2]
[327179517,1715880646195,-500.0,0.00016438,2]
[327179519,1715880646204,-500.0,0.00016438,2]
[327179521,1715880646213,-500.0,0.00016438,2]
[327179523,1715880646223,-2229.02,0.00016438,2]
[327179538,1715880646364,-992.96,0.00016438,2]
[327179540,1715880646375,-229.74987612,0.00016438,2]
[327179542,1715880646385,-500.0,0.00016438,2]
[327179544,1715880646395,-393.61265773,0.00016438,2]
[327179545,1715880646404,-2285.53,0.00016438,2]
[327179546,1715880646413,-500.0,0.00016438,2]
[327179547,1715880646423,-500.0,0.00016438,2]
[327179548,1715880646432,-209.34408906,0.00016438,2]
[327179549,1715880646441,-636.27,0.00016438,2]
[327179550,1715880646451,-500.0,0.00016438,2]
[327179551,1715880646460,-897.39,0.00016438,2]
[327179552,1715880646469,-500.0,0.00016438,2]
[327179553,1715880646478,-500.0,0.00016438,2]
[327179554,1715880646487,-500.0,0.00016438,2]
[327179555,1715880646497,-500.0,0.00016438,4]
[327179556,1715880646506,-500.0,0.00016438,2]
[327179557,1715880646515,-500.0,0.00016438,2]
[327179558,1715880646525,-500.0,0.00016438,2]
[327179559,1715880646535,-500.0,0.00016438,2]
[327179560,1715880646547,-500.0,0.00016438,2]
[327179561,1715880646556,-213.17197231,0.00016438,2]
[327179562,1715880646566,-500.0,0.00016438,2]
[327179563,1715880646576,-2320.64,0.00016438,2]
[327179564,1715880646586,-1332.88,0.00016438,2]
[327179565,1715880646595,-500.0,0.00016438,2]
[327179566,1715880646604,-500.0,0.00016438,2]
[327179567,1715880646613,-269.331606,0.00016438,2]
[327179568,1715880646624,-500.0,0.00016438,2]
[327179570,1715880646635,-492.48136223,0.00016438,2]
[327179572,1715880646644,-500.0,0.00016438,2]
[327179574,1715880646653,-944.05,0.00016438,2]
[327179577,1715880646672,-500.0,0.00016438,2]
[327179579,1715880646683,-500.0,0.00016438,2]
[327179581,1715880646693,-1098.56,0.00016438,2]
[327179583,1715880646703,-500.0,0.00016438,2]
[327179585,1715880646713,-542.42,0.00016438,2]
[327179587,1715880646723,-500.0,0.00016438,2]
[327179589,1715880646733,-725.35,0.00016438,2]
[327179592,1715880646743,-577.56,0.00016438,2]
[327179594,1715880646753,-3909.09,0.00016438,2]
[327179596,1715880646763,-500.0,0.00016438,2]
[327179598,1715880646774,-14436.1,0.00016438,2]
[327179600,1715880646784,-500.0,0.00016438,2]
[327179602,1715880646794,-501.49819277,0.00016438,2]
[327179604,1715880646803,-53233.38447809,0.00016438,2]
[327179678,1715880648198,-719.79,0.00016438,2]
[327179680,1715880648210,-3915.99552191,0.00016438,2]
[327179682,1715880648220,-842.55,0.00016438,2]
[327179684,1715880648230,-2112.06,0.00016438,2]
[327179686,1715880648239,-5256.85,0.00016438,2]
[327179688,1715880648248,-500.0,0.00016438,2]
[327179690,1715880648257,-500.0,0.00016438,2]
[327179692,1715880648266,-500.0,0.00016438,2]
[327179694,1715880648278,-7214.44360809,0.00016438,2]
[327180042,1715881627156,-179.29269342,0.0001625,2]
[327180043,1715881627179,-535.45491274,0.00016273,2]
[327180044,1715881627201,-150.0,0.00016307,2]
[327180045,1715881627234,-201.84766332,0.00016338,2]
[327180046,1715881627261,-416.87621729,0.00016339,2]
[327180047,1715881627292,-4259.53352427,0.000164,2]
[327180048,1715881627321,-150.0,0.0001643,2]
[327180049,1715881627351,-154.82968734,0.00016436,2]
[327180050,1715881627384,-522.8826929,0.00016436,2]
[327180051,1715881627412,-155.40164816,0.00016436,2]
[327180052,1715881627443,-155.40299661,0.00016436,2]
[327180053,1715881627475,-475.84079107,0.00016436,2]
[327180054,1715881627501,-3053.80338249,0.00016436,2]
[327180055,1715881627526,-962.39794039,0.00016436,2]
[327180056,1715881631121,-931.98724534,0.00016436,2]
[327180057,1715881631144,-154.79876161,0.00016436,2]
[327180058,1715881631169,-161.01992916,0.00016437,2]
[327180059,1715881631192,-286.24167411,0.00016437,2]
[327180060,1715881631218,-11072.94768745,0.00016438,3]
[327180061,1715881631241,-500.0,0.00016438,2]
[327180062,1715881631265,-564.13,0.00016438,2]
[327180063,1715881631288,-500.0,0.00016438,2]
[327180064,1715881631312,-500.0,0.00016438,2]
[327180065,1715881631339,-500.0,0.00016438,2]
[327180066,1715881631363,-500.0,0.00016438,2]
[327180067,1715881631386,-500.0,0.00016438,2]
[327180068,1715881631408,-547.74,0.00016438,2]
[327180069,1715881631433,-500.0,0.00016438,2]
[327180070,1715881631458,-588.93,0.00016438,2]
[327180071,1715881631482,-500.0,0.00016438,2]
[327180072,1715881631506,-283.18,0.00016438,2]
[327180073,1715881631530,-500.0,0.00016438,2]
[327180074,1715881631555,-939.18,0.00016438,2]
[327180075,1715881631579,-500.0,0.00016438,2]
[327180076,1715881631610,-500.0,0.00016438,2]
[327180077,1715881631633,-500.0,0.00016438,2]
[327180078,1715881631653,-500.0,0.00016438,2]
[327180079,1715881631676,-500.0,0.00016438,2]
[327180080,1715881631698,-500.0,0.00016438,2]
[327180081,1715881631718,-500.0,0.00016438,2]
[327180082,1715881631739,-500.0,0.00016438,2]
[327180083,1715881631997,-500.0,0.00016438,2]
[327180084,1715881632019,-768.6,0.00016438,2]
[327180085,1715881632041,-500.0,0.00016438,2]
[327180086,1715881632064,-500.0,0.00016438,2]
[327180087,1715881632088,-500.0,0.00016438,2]
[327180088,1715881632108,-610.21,0.00016438,2]
[327180089,1715881632129,-500.0,0.00016438,2]
[327180090,1715881632148,-500.0,0.00016438,2]
[327180091,1715881632168,-500.0,0.00016438,2]
[327180092,1715881632190,-500.0,0.00016438,2]
[327180093,1715881632212,-534.82,0.00016438,2]
[327180094,1715881632233,-587.07678689,0.00016438,2]
[327180095,1715881632256,-500.0,0.00016438,2]
[327180096,1715881632278,-500.0,0.00016438,2]
[327180097,1715881632301,-500.0,0.00016438,2]
[327180098,1715881632322,-500.0,0.00016438,2]
[327180099,1715881632349,-500.0,0.00016438,2]
[327180100,1715881632369,-500.0,0.00016438,2]
[327180101,1715881632389,-500.0,0.00016438,2]
[327180102,1715881632408,-500.0,0.00016438,2]
[327180103,1715881632429,-500.0,0.00016438,2]
[327180104,1715881632450,-500.0,0.00016438,2]
[327180105,1715881632470,-500.0,0.00016438,2]
[327180106,1715881632490,-2882.55,0.00016438,2]
[327180107,1715881632511,-500.0,0.00016438,2]
[327180108,1715881632531,-672.34,0.00016438,2]
[327180109,1715881632550,-500.0,0.00016438,2]
[327180110,1715881632572,-500.0,0.00016438,2]
[327180111,1715881632600,-500.0,0.00016438,2]
[327180112,1715881632620,-500.0,0.00016438,2]
[327180113,1715881632639,-500.0,0.00016438,2]
[327180114,1715881632660,-500.0,0.00016438,2]
[327180115,1715881632680,-500.0,0.00016438,2]
[327180116,1715881632700,-500.0,0.00016438,2]
[327180117,1715881632719,-500.0,0.00016438,2]
[327180118,1715881632739,-500.0,0.00016438,2]
[327180119,1715881632759,-500.0,0.00016438,2]
[327180120,1715881632779,-500.0,0.00016438,2]
[327180121,1715881632798,-500.0,0.00016438,2]
[327180122,1715881632817,-500.0,0.00016438,2]
[327180123,1715881632840,-260.85550723,0.00016438,2]
[327180124,1715881632864,-500.0,0.00016438,2]
[327180125,1715881632883,-500.0,0.00016438,2]
[327180126,1715881632903,-1103.79,0.00016438,2]
[327180127,1715881632926,-500.0,0.00016438,2]
[327180128,1715881632949,-500.0,0.00016438,2]
[327180129,1715881632969,-500.0,0.00016438,2]
[327180130,1715881632989,-731.4,0.00016438,2]
[327180131,1715881633010,-2129.66,0.00016438,2]
[327180132,1715881633031,-500.0,0.00016438,2]
[327180133,1715881633051,-500.0,0.00016438,2]
[327180134,1715881633071,-500.0,0.00016438,2]
[327180135,1715881633096,-500.0,0.00016438,2]
[327180136,1715881633115,-500.0,0.00016438,2]
[327180137,1715881633136,-500.0,0.00016438,2]
[327180138,1715881633155,-566.12151485,0.00016438,2]
[327180139,1715881633174,-198.00621361,0.00016438,2]
[327180140,1715881633194,-1411.87,0.00016438,2]
[327180141,1715881633213,-500.0,0.00016438,2]
[327180142,1715881633234,-1403.58365643,0.00016438,2]
[327180143,1715881633336,-1466.14634357,0.00016438,2]
[327180144,1715881633359,-980.22,0.00016438,2]
[327180145,1715881633379,-500.0,0.00016438,2]
[327180146,1715881633403,-500.0,0.00016438,2]
[327180147,1715881633423,-500.0,0.00016438,2]
[327180148,1715881633443,-2401.23,0.00016438,2]
[327180149,1715881633464,-805.09,0.00016438,2]
[327180150,1715881633486,-985.99,0.00016438,2]
[327180151,1715881633506,-500.0,0.00016438,2]
[327180152,1715881633528,-500.0,0.00016438,2]
[327180153,1715881633548,-500.0,0.00016438,2]
[327180154,1715881633568,-500.38457858,0.00016438,2]
[327180155,1715881633593,-500.0,0.00016438,2]
[327180156,1715881633613,-500.0,0.00016438,2]
[327180157,1715881633634,-500.0,0.00016438,2]
[327180158,1715881633654,-500.0,0.00016438,2]
[327180159,1715881633675,-1397.9,0.00016438,2]
[327180160,1715881633694,-500.0,0.00016438,2]
[327180161,1715881633714,-500.0,0.00016438,2]
[327180162,1715881633734,-500.0,0.00016438,2]
[327180163,1715881633754,-500.0,0.00016438,2]
[327180164,1715881633774,-500.0,0.00016438,2]
[327180165,1715881633794,-500.0,0.00016438,2]
[327180166,1715881633813,-507.45,0.00016438,2]
[327180167,1715881633837,-1160.05,0.00016438,2]
[327180168,1715881633860,-500.0,0.00016438,2]
[327180169,1715881633881,-397.36139608,0.00016438,2]
[327180170,1715881633902,-500.0,0.00016438,2]
[327180171,1715881633923,-609.94,0.00016438,2]
[327180172,1715881633945,-578.50323802,0.00016438,2]
[327180173,1715881633967,-932.17,0.00016438,2]
[327180174,1715881633987,-826.03,0.00016438,2]
[327180175,1715881634008,-630.33823224,0.00016438,2]
[327180176,1715881634029,-500.0,0.00016438,2]
[327180177,1715881634050,-500.0,0.00016438,2]
[327180178,1715881634070,-500.0,0.00016438,2]
[327180179,1715881634091,-500.0,0.00016438,2]
[327180180,1715881634111,-591.18,0.00016438,2]
[327180181,1715881634131,-500.0,0.00016438,2]
[327180182,1715881634152,-738.47,0.00016438,2]
[327180183,1715881634172,-508.33,0.00016438,2]
[327180184,1715881634192,-500.0,0.00016438,2]
[327180185,1715881634212,-500.0,0.00016438,2]
[327180186,1715881634232,-1050.42,0.00016438,2]
[327180187,1715881634251,-500.0,0.00016438,2]
[327180188,1715881634271,-500.0,0.00016438,2]
[327180189,1715881634290,-764.55,0.00016438,2]
[327180190,1715881634309,-500.0,0.00016438,2]
[327180191,1715881634330,-500.0,0.00016438,2]
[327180192,1715881634352,-500.0,0.00016438,2]
[327180193,1715881634372,-988.29,0.00016438,2]
[327180194,1715881634392,-500.0,0.00016438,2]
[327180195,1715881634411,-500.0,0.00016438,2]
[327180196,1715881634431,-500.0,0.00016438,2]
[327180197,1715881634450,-500.0,0.00016438,4]
[327180198,1715881634475,-500.0,0.00016438,2]
[327180199,1715881634494,-500.0,0.00016438,2]
[327180200,1715881634513,-500.0,0.00016438,2]
[327180201,1715881634533,-500.0,0.00016438,2]
[327180202,1715881634553,-500.0,0.00016438,2]
[327180203,1715881634573,-715.72,0.00016438,2]
[327180204,1715881634599,-500.0,0.00016438,2]
[327180205,1715881634621,-588.39,0.00016438,2]
[327180206,1715881634641,-500.0,0.00016438,2]
[327180207,1715881634661,-500.0,0.00016438,2]
[327180208,1715881634681,-500.0,0.00016438,2]
[327180209,1715881634701,-500.0,0.00016438,2]
[327180210,1715881634720,-500.0,0.00016438,2]
[327180211,1715881634740,-945.62,0.00016438,2]
[327180212,1715881634760,-2779.0,0.00016438,2]
[327180213,1715881634779,-1851.49,0.00016438,2]
[327180214,1715881634799,-500.0,0.00016438,2]
[327180215,1715881634819,-500.85,0.00016438,2]
[327180216,1715881634967,-500.0,0.00016438,2]
[327180217,1715881634988,-500.0,0.00016438,2]
[327180218,1715881635011,-500.0,0.00016438,2]
[327180219,1715881635032,-500.0,0.00016438,2]
[327180220,1715881635055,-4019.23,0.00016438,2]
[327180221,1715881635075,-500.0,0.00016438,2]
[327180222,1715881635097,-500.0,0.00016438,2]
[327180223,1715881635117,-500.0,0.00016438,2]
[327180224,1715881635136,-562.49900937,0.00016438,2]
[327180225,1715881635159,-907.89,0.00016438,2]
[327180226,1715881635182,-561.36,0.00016438,2]
[327180227,1715881635204,-500.0,0.00016438,2]
[327180228,1715881635226,-844.77,0.00016438,2]
[327180229,1715881635247,-500.0,0.00016438,2]
[327180230,1715881635272,-500.0,0.00016438,2]
[327180231,1715881635295,-500.0,0.00016438,2]
[327180232,1715881635317,-500.0,0.00016438,2]
[327180233,1715881635343,-1735.96,0.00016438,2]
[327180234,1715881635363,-500.0,0.00016438,2]
[327180235,1715881635384,-1277.34,0.00016438,2]
[327180236,1715881635404,-609.76,0.00016438,2]
[327180237,1715881635425,-500.0,0.00016438,2]
[327180238,1715881635445,-838.1,0.00016438,2]
[327180239,1715881635465,-500.0,0.00016438,2]
[327180240,1715881635484,-500.0,0.00016438,2]
[327180241,1715881635505,-3828.49,0.00016438,2]
[327180242,1715881635527,-500.0,0.00016438,2]
[327180243,1715881635549,-500.0,0.00016438,2]
[327180244,1715881635569,-2136.14,0.00016438,2]
[327180245,1715881635594,-307.12542869,0.00016438,2]
[327180246,1715881635887,-192.87457131,0.00016438,2]
[327180247,1715881635906,-500.0,0.00016438,2]
[327180248,1715881635927,-371.74689869,0.00016438,2]
[327180249,1715881643115,-128.25310131,0.00016438,2]
[327180250,1715881643137,-285.49744636,0.00016438,2]
[327180251,1715881645104,-268.00255364,0.00016438,2]
[327180252,1715881645125,-1984.6,0.00016438,2]
[327180253,1715881645146,-500.0,0.00016438,2]
[327180254,1715881645167,-500.0,0.00016438,2]
[327180255,1715881645187,-500.0,0.00016438,2]
[327180256,1715881645207,-1276.47,0.00016438,2]
[327180257,1715881645228,-2567.56,0.00016438,2]
[327180258,1715881645248,-500.0,0.00016438,2]
[327180259,1715881645270,-860.0,0.00016438,2]
[327180260,1715881645290,-500.0,0.00016438,2]
[327180261,1715881645311,-500.0,0.00016438,2]
[327180262,1715881645334,-264.70284205,0.00016438,2]
[327180263,1715881645355,-863.42,0.00016438,2]
[327180264,1715881645375,-951.59,0.00016438,2]
[327180265,1715881645395,-500.0,0.00016438,2]
[327180266,1715881645415,-500.0,0.00016438,2]
[327180267,1715881645436,-2223.95,0.00016438,2]
[327180268,1715881645457,-500.0,0.00016438,2]
[327180269,1715881645477,-500.0,0.00016438,2]
[327180270,1715881645497,-500.0,0.00016438,2]
[327180271,1715881645740,-801.65,0.00016438,2]
[327180272,1715881645762,-500.0,0.00016438,2]
[327180273,1715881645782,-500.0,0.00016438,2]
[327180274,1715881645802,-500.0,0.00016438,2]
[327180275,1715881645822,-904.72,0.00016438,2]
[327180276,1715881645844,-500.0,0.00016438,2]
[327180277,1715881645867,-1282.08664906,0.00016438,2]
[327180347,1715881839285,-643.15976291,0.00016338,2]
[327180348,1715881839294,-242.63666754,0.00016437,2]
[327180349,1715881839304,-5536.47384373,0.00016438,3]
[327180350,1715881839314,-1452.65335094,0.00016438,2]
[327180351,1715881839323,-537.35,0.00016438,2]
[327180352,1715881839332,-500.0,0.00016438,2]
[327180353,1715881839342,-500.0,0.00016438,2]
[327180354,1715881839351,-500.0,0.00016438,2]
[327180355,1715881839360,-505.98040871,0.00016438,2]
[327180356,1715881839369,-570.88,0.00016438,2]
[327180357,1715881839379,-500.0,0.00016438,2]
[327180358,1715881839389,-1080.06,0.00016438,2]
[327180359,1715881839399,-954.52,0.00016438,2]
[327180360,1715881839408,-500.0,0.00016438,2]
[327180361,1715881839417,-500.0,0.00016438,2]
[327180362,1715881839426,-476.28596617,0.00016438,2]
[327180378,1715881841257,-173.26403383,0.00016438,2]
[327180379,1715881841266,-3158.03,0.00016438,2]
[327180380,1715881841275,-500.0,0.00016438,2]
[327180381,1715881841284,-500.0,0.00016438,2]
[327180382,1715881841293,-933.07,0.00016438,2]
[327180383,1715881841302,-1451.75,0.00016438,2]
[327180384,1715881841312,-571.29,0.00016438,2]
[327180385,1715881841321,-565.98,0.00016438,2]
[327180386,1715881841331,-280.79903579,0.00016438,2]
[327180387,1715881841339,-500.0,0.00016438,2]
[327180388,1715881841349,-361.61461553,0.00016438,2]
[327180389,1715881841358,-500.0,0.00016438,2]
[327180390,1715881841367,-500.0,0.00016438,2]
[327180391,1715881841377,-500.0,0.00016438,2]
[327180392,1715881841386,-500.0,0.00016438,2]
[327180393,1715881841397,-500.0,0.00016438,2]
[327180394,1715881841406,-650.77,0.00016438,2]
[327180395,1715881841416,-500.0,0.00016438,2]
[327180396,1715881841428,-500.0,0.00016438,2]
[327180397,1715881841437,-500.0,0.00016438,2]
[327180398,1715881841447,-500.0,0.00016438,2]
[327180399,1715881841456,-500.0,0.00016438,2]
[327180400,1715881841465,-500.0,0.00016438,2]
[327180401,1715881841475,-500.0,0.00016438,2]
[327180402,1715881841484,-500.0,0.00016438,2]
[327180403,1715881841493,-500.0,0.00016438,2]
[327180404,1715881841503,-1714.22,0.00016438,2]
[327180405,1715881841512,-851.9,0.00016438,2]
[327180406,1715881841521,-500.0,0.00016438,2]